fUST/lending_fUST_20250816
["ID","MTS","AMOUNT","RATE_DAILY","PERIOD"]
[379622762,1755348641912,-480.0,0.00021917,3]
[379622763,1755348641924,-480.0,0.00021917,3]
[379622764,1755348641933,-480.0,0.00021917,3]
[379622765,1755348641942,-480.0,0.00021917,3]
[379622766,1755348641952,-480.0,0.00021917,3]
[379622767,1755348641960,-480.0,0.00021917,3]
[379622768,1755348641970,-480.0,0.00021917,3]
[379622769,1755348641980,-480.0,0.00021917,3]
[379622770,1755348641989,-480.0,0.00021917,3]
[379622771,1755348641998,-480.0,0.00021917,3]
[379622772,1755348642009,-397.23656085,0.00021917,3]
[379622773,1755348642019,-502.54,0.00021917,3]
[379622774,1755348642028,-480.0,0.00021917,3]
[379622775,1755348642037,-480.0,0.00021917,3]
[379622776,1755348642046,-480.0,0.00021917,3]
[379622777,1755348642056,-777.87,0.00021917,3]
[379622778,1755348642066,-512.7,0.00021917,3]
[379622779,1755348642075,-400.0,0.00021917,3]
[379622780,1755348642085,-480.0,0.00021917,3]
[379622781,1755348642094,-757.64,0.00021917,3]
[379622782,1755348642103,-480.0,0.00021917,3]
[379622783,1755348642113,-480.0,0.00021917,3]
[379622784,1755348642122,-480.0,0.00021917,3]
[379622785,1755348642132,-480.0,0.00021917,3]
[379622786,1755348642141,-480.0,0.00021917,3]
[379622787,1755348642151,-480.0,0.00021917,3]
[379622788,1755348642159,-480.0,0.00021917,3]
[379622789,1755348642168,-480.0,0.00021917,3]
[379622790,1755348642178,-337.52455103,0.00021917,3]
[379622791,1755348642189,-480.0,0.00021917,3]
[379622792,1755348642198,-504.93878312,0.00021917,3]
[379622793,1755348642208,-480.0,0.00021917,3]
[379622794,1755348642218,-480.0,0.00021917,3]
[379622795,1755348642227,-528.58,0.00021917,3]
[379622796,1755348642236,-1194.76,0.00021917,3]
[379622797,1755348642246,-480.0,0.00021917,3]
[379622798,1755348642256,-480.0,0.00021917,3]
[379622799,1755348642266,-480.0,0.00021917,3]
[379622800,1755348642275,-480.0,0.00021917,3]
[379622801,1755348642284,-460.0,0.00021917,3]
[379622802,1755348642294,-480.0,0.00021917,3]
[379622803,1755348642303,-480.0,0.00021917,3]
[379622804,1755348642312,-480.0,0.00021917,3]
[379622805,1755348642322,-480.0,0.00021917,3]
[379622806,1755348642332,-480.0,0.00021917,3]
[379622807,1755348642342,-480.0,0.00021917,3]
[379622808,1755348642351,-480.0,0.00021917,3]
[379622809,1755348642361,-480.0,0.00021917,2]
[379622810,1755348642370,-480.0,0.00021917,3]
[379622811,1755348642379,-480.0,0.00021917,3]
[379622812,1755348642390,-480.0,0.00021917,3]
[379622813,1755348642399,-661.72,0.00021917,3]
[379622814,1755348642409,-480.0,0.00021917,3]
[379622815,1755348642420,-480.0,0.00021917,3]
[379622816,1755348642430,-480.0,0.00021917,3]
[379622817,1755348642442,-480.0,0.00021917,3]
[379622818,1755348642452,-1226.87,0.00021917,3]
[379622819,1755348642462,-1134.69,0.00021917,3]
[379622820,1755348642471,-480.0,0.00021917,3]
[379622821,1755348642481,-480.0,0.00021917,3]
[379622822,1755348642490,-480.0,0.00021917,3]
[379622823,1755348642500,-857.71,0.00021917,3]
[379622824,1755348642509,-887.99,0.00021917,3]
[379622825,1755348642519,-338.85173787,0.00021917,3]
[379622826,1755348642528,-480.0,0.00021917,3]
[379622827,1755348642537,-480.0,0.00021917,3]
[379622828,1755348642547,-480.0,0.00021917,3]
[379622829,1755348642556,-480.0,0.00021917,3]
[379622830,1755348642566,-480.0,0.00021917,3]
[379622831,1755348642575,-911.08,0.00021917,3]
[379622832,1755348642584,-480.0,0.00021917,3]
[379622833,1755348642593,-560.36905888,0.00021917,3]
[379622834,1755348642603,-480.0,0.00021917,3]
[379622835,1755348642612,-480.0,0.00021917,3]
[379622836,1755348642621,-480.0,0.00021917,3]
[379622837,1755348642630,-8317.3,0.00021917,3]
[379622838,1755348642639,-1627.26,0.00021917,3]
[379622839,1755348642649,-773.79,0.00021917,3]
[379622840,1755348642659,-462.1417622,0.00021917,3]
[379622841,1755348642669,-1690.26,0.00021917,3]
[379622842,1755348642678,-480.0,0.00021917,3]
[379622843,1755348642687,-480.0,0.00021917,3]
[379622844,1755348642697,-1048.55,0.00021917,3]
[379622845,1755348642706,-480.0,0.00021917,3]
[379622846,1755348642715,-959.46,0.00021917,3]
[379622847,1755348642724,-480.0,0.00021917,3]
[379622848,1755348642733,-420.0,0.00021917,3]
[379622849,1755348642743,-504.99243989,0.00021917,3]
[379622850,1755348642752,-487.81,0.00021917,3]
[379622851,1755348642762,-480.0,0.00021917,3]
[379622852,1755348642776,-343.32898578,0.00021917,3]
[379622853,1755348642785,-401.56368463,0.00021917,3]
[379622854,1755348642794,-480.0,0.00021917,3]
[379622855,1755348642803,-480.0,0.00021917,3]
[379622856,1755348642812,-576.68,0.00021917,3]
[379622857,1755348642822,-621.1,0.00021917,3]
[379622858,1755348642831,-480.0,0.00021917,3]
[379622859,1755348642841,-480.0,0.00021917,3]
[379622860,1755348642850,-559.12752813,0.00021917,3]
[379622861,1755348642860,-480.0,0.00021917,3]
[379622862,1755348642869,-480.0,0.00021917,3]
[379622863,1755348642878,-480.0,0.00021917,3]
[379622864,1755348642888,-1026.63,0.00021917,3]
[379622865,1755348642897,-480.0,0.00021917,3]
[379622866,1755348642907,-480.0,0.00021917,3]
[379622867,1755348642916,-2190.76,0.00021917,3]
[379622868,1755348642925,-480.0,0.00021917,3]
[379622869,1755348642935,-4500.34,0.00021917,3]
[379622870,1755348642944,-480.0,0.00021917,3]
[379622871,1755348642954,-480.0,0.00021917,3]
[379622872,1755348642964,-480.0,0.00021917,3]
[379622873,1755348642973,-480.0,0.00021917,3]
[379622874,1755348642982,-480.0,0.00021917,3]
[379622875,1755348642991,-480.0,0.00021917,3]
[379622876,1755348643001,-480.0,0.00021917,3]
[379622877,1755348643010,-423.58735649,0.00021917,3]
[379622878,1755348643019,-2282.14,0.00021917,3]
[379622879,1755348643028,-480.0,0.00021917,3]
[379622880,1755348643037,-1403.34,0.00021917,3]
[379622881,1755348643046,-480.0,0.00021917,3]
[379622882,1755348643055,-480.0,0.00021917,3]
[379622883,1755348643191,-480.0,0.00021917,3]
[379622884,1755348643201,-480.0,0.00021917,3]
[379622885,1755348643211,-480.0,0.00021917,3]
[379622886,1755348643220,-11910.29,0.00021917,3]
[379622887,1755348643229,-480.0,0.00021917,3]
[379622888,1755348643238,-480.0,0.00021917,3]
[379622889,1755348643248,-480.0,0.00021917,3]
[379622890,1755348643257,-480.0,0.00021917,3]
[379622891,1755348643266,-480.0,0.00021917,3]
[379622893,1755348643275,-480.0,0.00021917,3]
[379622895,1755348643285,-480.0,0.00021917,3]
[379622897,1755348643294,-460.0,0.00021917,3]
[379622898,1755348643303,-996.23,0.00021917,3]
[379622899,1755348643312,-4280.11,0.00021917,3]
[379622900,1755348643322,-480.0,0.00021917,3]
[379622902,1755348643331,-480.0,0.00021917,3]
[379622904,1755348643341,-498.09,0.00021917,3]
[379622906,1755348643350,-480.0,0.00021917,3]
[379622907,1755348643360,-1272.84,0.00021917,3]
[379622908,1755348643369,-480.0,0.00021917,3]
[379622909,1755348643378,-480.0,0.00021917,3]
[379622910,1755348643387,-480.0,0.00021917,3]
[379622911,1755348643396,-480.0,0.00021917,3]
[379622912,1755348643406,-480.0,0.00021917,3]
[379622913,1755348643416,-480.0,0.00021917,3]
[379622914,1755348643425,-1123.25,0.00021917,3]
[379622915,1755348643434,-480.0,0.00021917,3]
[379622916,1755348643444,-480.0,0.00021917,3]
[379622917,1755348643454,-480.0,0.00021917,3]
[379622918,1755348643463,-522.4,0.00021917,3]
[379622919,1755348643472,-480.0,0.00021917,3]
[379622920,1755348643482,-441.16628443,0.00021917,3]
[379622921,1755348643491,-480.0,0.00021917,3]
[379622922,1755348643500,-480.0,0.00021917,3]
[379622923,1755348643509,-480.0,0.00021917,3]
[379622924,1755348643519,-480.0,0.00021917,3]
[379622925,1755348643529,-480.0,0.00021917,3]
[379622926,1755348643538,-480.0,0.00021917,3]
[379622927,1755348643547,-581.54,0.00021917,3]
[379622928,1755348643556,-2357.05,0.00021917,3]
[379622929,1755348643565,-480.0,0.00021917,3]
[379622930,1755348643574,-480.0,0.00021917,3]
[379622931,1755348643584,-480.0,0.00021917,3]
[379622932,1755348643593,-899.78,0.00021917,3]
[379622933,1755348643602,-480.0,0.00021917,3]
[379622934,1755348643611,-480.0,0.00021917,3]
[379622935,1755348643621,-464.37442456,0.00021917,3]
[379622936,1755348643630,-480.0,0.00021917,3]
[379622937,1755348643640,-480.0,0.00021917,3]
[379622938,1755348643649,-480.0,0.00021917,3]
[379622939,1755348643659,-329.77651135,0.00021917,3]
[379622940,1755348643669,-480.0,0.00021917,3]
[379622941,1755348643679,-480.0,0.00021917,3]
[379622942,1755348643688,-480.0,0.00021917,3]
[379622943,1755348643698,-480.0,0.00021917,3]
[379622944,1755348643707,-475.78870885,0.00021917,3]
[379622945,1755348643717,-480.0,0.00021917,3]
[379622946,1755348643726,-480.0,0.00021917,3]
[379622947,1755348643735,-480.0,0.00021917,3]
[379622948,1755348643744,-480.0,0.00021917,3]
[379622949,1755348643753,-421.25850553,0.00021917,3]
[379622950,1755348643762,-480.0,0.00021917,3]
[379622951,1755348643775,-480.0,0.00021917,3]
[379622952,1755348643784,-923.61,0.00021917,3]
[379622953,1755348643794,-360.0,0.00021917,3]
[379622954,1755348643804,-816.52,0.00021917,3]
[379622955,1755348643815,-480.0,0.00021917,3]
[379622956,1755348643825,-480.0,0.00021917,3]
[379622957,1755348643834,-480.0,0.00021917,3]
[379622958,1755348643843,-480.0,0.00021917,3]
[379622959,1755348643853,-460.0,0.00021917,3]
[379622960,1755348643863,-480.0,0.00021917,3]
[379622961,1755348643872,-460.0,0.00021917,3]
[379622962,1755348643881,-480.0,0.00021917,3]
[379622963,1755348643890,-480.0,0.00021917,3]
[379622964,1755348643899,-366.10299693,0.00021917,3]
[379622965,1755348643909,-480.0,0.00021917,3]
[379622966,1755348643918,-480.0,0.00021917,3]
[379622967,1755348643926,-480.0,0.00021917,3]
[379622968,1755348643936,-480.0,0.00021917,3]
[379622969,1755348643946,-480.0,0.00021917,3]
[379622970,1755348643955,-480.0,0.00021917,3]
[379622971,1755348643964,-6168.87,0.00021917,3]
[379622972,1755348643973,-480.0,0.00021917,3]
[379622973,1755348643983,-480.0,0.00021917,3]
[379622974,1755348643992,-480.0,0.00021917,3]
[379622975,1755348644001,-480.0,0.00021917,3]
[379622976,1755348644011,-319.02347275,0.00021917,3]
[379622977,1755348644020,-799.71,0.00021917,3]
[379622978,1755348644029,-480.0,0.00021917,3]
[379622979,1755348644039,-480.0,0.00021917,3]
[379622980,1755348644049,-343.26239707,0.00021917,3]
[379622981,1755348644058,-480.0,0.00021917,3]
[379622982,1755348644068,-380.0,0.00021917,3]
[379622983,1755348644077,-1074.31,0.00021917,3]
[379622984,1755348644086,-480.0,0.00021917,3]
[379622985,1755348644096,-480.0,0.00021917,3]
[379622986,1755348644105,-885.89,0.00021917,3]
[379622987,1755348644114,-215.68093138,0.00021917,3]
[379622988,1755348644124,-480.0,0.00021917,3]
[379622989,1755348644133,-1855.1,0.00021917,3]
[379622990,1755348644143,-480.0,0.00021917,3]
[379622991,1755348644152,-480.0,0.00021917,3]
[379622992,1755348644163,-1212.54,0.00021917,3]
[379622993,1755348644174,-480.0,0.00021917,3]
[379622994,1755348644184,-480.0,0.00021917,3]
[379622995,1755348644193,-480.0,0.00021917,3]
[379622996,1755348644203,-480.0,0.00021917,3]
[379622997,1755348644213,-480.0,0.00021917,3]
[379622998,1755348644223,-613.10423497,0.00021917,3]
[379622999,1755348644233,-480.0,0.00021917,3]
[379623000,1755348644243,-572.29,0.00021917,3]
[379623001,1755348644253,-480.0,0.00021917,3]
[379623002,1755348644262,-521.79,0.00021917,3]
[379623003,1755348644274,-480.0,0.00021917,3]
[379623004,1755348644284,-480.0,0.00021917,3]
[379623005,1755348644293,-785.66,0.00021917,3]
[379623006,1755348644302,-480.0,0.00021917,3]
[379623007,1755348644312,-480.0,0.00021917,3]
[379623008,1755348644321,-676.14,0.00021917,3]
[379623009,1755348644331,-480.0,0.00021917,3]
[379623010,1755348644340,-1457.22,0.00021917,3]
[379623011,1755348644350,-3000.2,0.00021917,3]
[379623012,1755348644360,-480.0,0.00021917,3]
[379623013,1755348644369,-480.0,0.00021917,3]
[379623014,1755348644379,-480.0,0.00021917,3]
[379623015,1755348644388,-480.0,0.00021917,3]
[379623016,1755348644398,-500.0,0.00021917,3]
[379623017,1755348644409,-500.0,0.00021917,3]
[379623018,1755348644418,-500.0,0.00021917,3]
[379623019,1755348644427,-500.0,0.00021917,3]
[379623020,1755348644436,-500.0,0.00021917,3]
[379623021,1755348644446,-500.0,0.00021917,3]
[379623022,1755348644455,-380.0,0.00021917,3]
[379623023,1755348644464,-480.0,0.00021917,3]
[379623024,1755348644474,-500.0,0.00021917,3]
[379623025,1755348644483,-161.55,0.00021917,3]
[379623026,1755348644493,-480.0,0.00021917,3]
[379623027,1755348644502,-360.0,0.00021917,3]
[379623028,1755348644512,-460.0,0.00021917,3]
[379623029,1755348644521,-480.0,0.00021917,2]
[379623030,1755348644530,-480.0,0.00021917,3]
[379623031,1755348644540,-1603.15,0.00021917,3]
[379623032,1755348644549,-480.0,0.00021917,3]
[379623033,1755348644559,-480.0,0.00021917,3]
[379623034,1755348644568,-480.0,0.00021917,3]
[379623035,1755348644578,-168.0,0.0002193,2]
[379623036,1755348644587,-2907.56400006,0.00021932,2]
[379623037,1755348644596,-166.09939369,0.00021945,2]
[379623038,1755348644606,-501.08647519,0.00021973,2]
[379623039,1755348644616,-204.42571016,0.00021973,2]
[379623040,1755348644625,-500.0,0.00021973,2]
[379623041,1755348644634,-500.63349668,0.00021973,2]
[379623042,1755348644644,-500.0,0.00021973,2]
[379623043,1755348644655,-160.59508238,0.00021973,2]
[379623044,1755348644667,-160.18977761,0.00021973,2]
[379623045,1755348644677,-258.62627597,0.00021973,2]
[379623046,1755348644687,-258.59425367,0.00021973,2]
[379623047,1755348644697,-158.58749088,0.00021973,2]
[379623048,1755348644706,-500.0,0.00021973,2]
[379623049,1755348644716,-341.19863685,0.00021973,2]
[379623050,1755348644725,-500.0,0.00021973,2]
[379623051,1755348644735,-158.5737766,0.00021973,2]
[379623052,1755348644745,-415.28397868,0.00021973,2]
[379623053,1755348644755,-158.59094384,0.00021973,2]
[379623054,1755348644765,-400.45272023,0.00021973,2]
[379623055,1755348644778,-160.19341932,0.00021973,2]
[379623056,1755348644788,-500.0,0.00021973,2]
[379623057,1755348644797,-160.59564343,0.00021973,2]
[379623058,1755348644807,-500.0,0.00021973,2]
[379623059,1755348644818,-340.37478189,0.00021973,2]
[379623060,1755348644827,-500.0,0.00021973,2]
[379623061,1755348644837,-500.0,0.00021973,2]
[379623062,1755348644848,-258.66738447,0.00021973,2]
[379623063,1755348644858,-158.59895642,0.00021973,2]
[379623064,1755348644868,-500.0,0.00021973,2]
[379623065,1755348644878,-157.59078139,0.00021973,2]
[379623066,1755348644888,-500.0,0.00021973,2]
[379623067,1755348644897,-261.37303828,0.00021973,2]
[379623068,1755348644910,-500.0,0.00021973,2]
[379623069,1755348644920,-160.1795047,0.00021973,2]
[379623070,1755348644929,-500.0,0.00021973,2]
[379623071,1755348644940,-504.38691554,0.00021973,2]
[379623072,1755348644952,-173.68600532,0.00021973,2]
[379623073,1755348644963,-500.0,0.00021973,2]
[379623074,1755348644972,-500.0,0.00021973,2]
[379623075,1755348644982,-632.78703065,0.00021973,2]
[379623076,1755348644991,-521.75570288,0.00021973,2]
[379623077,1755348645001,-248.69501119,0.00021973,2]
[379623078,1755348645010,-501.49764947,0.00021973,2]
[379623079,1755348645020,-500.0,0.00021973,2]
[379623080,1755348645031,-525.57279936,0.00021973,2]
[379623081,1755348645041,-500.0,0.00021973,2]
[379623082,1755348645050,-500.0,0.00021973,2]
[379623083,1755348645059,-500.0,0.00021973,2]
[379623084,1755348645069,-500.0,0.00021973,2]
[379623085,1755348645079,-500.0,0.00021973,2]
[379623086,1755348645088,-500.0,0.00021973,2]
[379623087,1755348645098,-500.0,0.00021973,2]
[379623088,1755348645107,-500.0,0.00021973,2]
[379623089,1755348645117,-500.0,0.00021973,2]
[379623090,1755348645126,-500.0,0.00021973,2]
[379623091,1755348645137,-500.0,0.00021973,2]
[379623092,1755348645147,-500.0,0.00021973,2]
[379623093,1755348645159,-500.0,0.00021973,2]
[379623094,1755348645169,-500.0,0.00021973,2]
[379623095,1755348645179,-500.0,0.00021973,2]
[379623096,1755348645189,-500.0,0.00021973,2]
[379623097,1755348645201,-500.0,0.00021973,2]
[379623098,1755348645211,-500.0,0.00021973,2]
[379623099,1755348645220,-500.0,0.00021973,2]
[379623100,1755348645230,-500.0,0.00021973,2]
[379623101,1755348645240,-500.0,0.00021973,2]
[379623102,1755348645250,-500.0,0.00021973,2]
[379623103,1755348645260,-162.41400814,0.00021973,2]
[379623104,1755348645270,-500.0,0.00021973,2]
[379623105,1755348645280,-168.86650105,0.00021973,2]
[379623106,1755348645290,-500.0,0.00021973,2]
[379623107,1755348645300,-500.0,0.00021973,2]
[379623108,1755348645310,-500.0,0.00021973,2]
[379623109,1755348645320,-500.0,0.00021973,2]
[379623110,1755348645329,-500.0,0.00021973,2]
[379623111,1755348645338,-500.0,0.00021973,2]
[379623112,1755348645348,-165.4,0.00022,7]
[379623113,1755348645358,-55656.54,0.00022,2]
[379623114,1755348645368,-8941.19,0.00022,7]
[379623115,1755348645377,-31450.18,0.00022,7]
[379623116,1755348645387,-151.0,0.00022,4]
[379623117,1755348645396,-151.0,0.00022,7]
[379623118,1755348645407,-151.0,0.00022,7]
[379623119,1755348645417,-151.0,0.00022,7]
[379623120,1755348645427,-151.0,0.00022,7]
[379623121,1755348645437,-151.0,0.00022,7]
[379623122,1755348645446,-462.1417622,0.00022,7]
[379623123,1755348645456,-164.0,0.00022,2]
[379623124,1755348645465,-168.0,0.00022,2]
[379623125,1755348645476,-151.0,0.00022,7]
[379623126,1755348645485,-151.0,0.00022,7]
[379623127,1755348645495,-151.0,0.00022,7]
[379623128,1755348645504,-215.68093138,0.00022,7]
[379623129,1755348645514,-4087.48139,0.00022,7]
[379623130,1755348645524,-4087.48139,0.00022,7]
[379623131,1755348645533,-169.0,0.00022,2]
[379623132,1755348645543,-204.564128,0.0002201,5]
[379623133,1755348645552,-160.0,0.00022083,2]
[379623134,1755348645562,-168.0,0.00022085,2]
[379623135,1755348645572,-531.45023464,0.00022091,2]
[379623136,1755348645581,-151.0,0.000221,10]
[379623137,1755348645591,-151.0,0.000221,6]
[379623138,1755348645600,-413.41,0.000221,2]
[379623139,1755348645609,-166.09939369,0.00022164,2]
[379623140,1755348645619,-501.53381623,0.00022173,2]
[379623141,1755348645629,-500.0,0.00022173,2]
[379623142,1755348645639,-500.0,0.00022173,2]
[379623143,1755348645648,-500.0,0.00022173,2]
[379623144,1755348645660,-500.0,0.00022173,2]
[379623145,1755348645669,-500.0,0.00022173,2]
[379623146,1755348645679,-500.0,0.00022173,2]
[379623147,1755348645688,-500.45994459,0.00022173,2]
[379623148,1755348645698,-500.53606696,0.00022173,2]
[379623149,1755348645707,-411.78390383,0.00022173,2]
[379623150,1755348645717,-500.0,0.00022173,2]
[379623151,1755348645726,-309.50605196,0.00022173,2]
[379623152,1755348645736,-501.50738922,0.00022173,2]
[379623153,1755348645745,-158.59536301,0.00022173,2]
[379623154,1755348645755,-158.59369277,0.00022173,2]
[379623155,1755348645764,-500.0,0.00022173,2]
[379623156,1755348645777,-500.0,0.00022173,2]
[379623157,1755348645786,-552.91855651,0.00022173,2]
[379623158,1755348645796,-181.22071922,0.00022173,2]
[379623159,1755348645806,-500.50306476,0.00022173,2]
[379623160,1755348645815,-500.0,0.00022173,2]
[379623161,1755348645825,-217.00503673,0.00022173,2]
[379623162,1755348645834,-500.0,0.00022173,2]
[379623163,1755348645843,-220.14342274,0.00022173,2]
[379623164,1755348645853,-500.0,0.00022173,2]
[379623165,1755348645864,-500.0,0.00022173,2]
[379623166,1755348645873,-500.0,0.00022173,2]
[379623168,1755348645883,-500.0,0.00022173,2]
[379623169,1755348645892,-500.0,0.00022173,2]
[379623173,1755348646024,-500.0,0.00022173,2]
[379623174,1755348646034,-500.0,0.00022173,2]
[379623175,1755348646044,-150000.0,0.00022191,2]
[379623176,1755348646054,-95513.80738187,0.00022191,2]
[379623177,1755348646065,-480.0,0.00022191,3]
[379623178,1755348646074,-1067.417758,0.00022191,7]
[379623179,1755348646084,-1067.417758,0.00022191,7]
[379623180,1755348646093,-1067.417758,0.00022191,7]
[379623181,1755348646103,-1067.417758,0.00022191,7]
[379623182,1755348646112,-151.0,0.00022191,7]
[379623183,1755348646132,-151.0,0.00022191,7]
[379623184,1755348646143,-151.0,0.00022191,7]
[379623185,1755348646152,-151.0,0.00022191,7]
[379623186,1755348646166,-280.0,0.00022191,3]
[379623187,1755348646177,-181.52822559,0.00022191,3]
[379623188,1755348646187,-197.618048,0.00022191,7]
[379623189,1755348646196,-197.618048,0.00022191,7]
[379623190,1755348646206,-480.0,0.00022191,3]
[379623191,1755348646215,-480.0,0.00022191,3]
[379623192,1755348646225,-608.034019,0.00022191,7]
[379623193,1755348646234,-608.034019,0.00022191,7]
[379623194,1755348646244,-480.0,0.00022191,3]
[379623195,1755348646254,-608.034019,0.00022191,7]
[379623196,1755348646263,-480.0,0.00022191,3]
[379623197,1755348646272,-608.034019,0.00022191,7]
[379623198,1755348646282,-480.0,0.00022191,3]
[379623199,1755348646292,-480.0,0.00022191,3]
[379623200,1755348646302,-480.0,0.00022191,3]
[379623201,1755348646312,-480.0,0.00022191,3]
[379623202,1755348646322,-151.0,0.00022191,7]
[379623203,1755348646331,-151.0,0.00022191,7]
[379623204,1755348646340,-2889.088345,0.00022191,7]
[379623205,1755348646350,-2889.088345,0.00022191,7]
[379623206,1755348646360,-2889.088345,0.00022191,7]
[379623207,1755348646370,-2889.088345,0.00022191,7]
[379623208,1755348646379,-360.8348439,0.00022191,3]
[379623209,1755348646388,-480.0,0.00022191,3]
[379623210,1755348646397,-179.09946108,0.00022191,3]
[379623211,1755348646408,-628.5514428,0.00022191,3]
[379623212,1755348646418,-255.73310218,0.00022191,3]
[379623213,1755348646429,-480.0,0.00022191,3]
[379623214,1755348646439,-480.0,0.00022191,3]
[379623215,1755348646448,-480.0,0.00022191,3]
[379623216,1755348646458,-480.0,0.00022191,3]
[379623217,1755348646467,-480.0,0.00022191,3]
[379623218,1755348646477,-480.0,0.00022191,3]
[379623219,1755348646486,-480.0,0.00022191,3]
[379623220,1755348646495,-475.31106279,0.00022191,3]
[379623221,1755348646504,-403.95288536,0.00022191,3]
[379623222,1755348646513,-480.0,0.00022191,3]
[379623223,1755348646522,-786.12,0.00022191,3]
[379623224,1755348646531,-151.0,0.00022191,7]
[379623225,1755348646541,-480.0,0.00022191,3]
[379623226,1755348646550,-151.0,0.00022191,7]
[379623227,1755348646559,-151.0,0.00022191,7]
[379623228,1755348646569,-151.0,0.00022191,7]
[379623229,1755348646578,-151.0,0.00022191,7]
[379623230,1755348646587,-151.0,0.00022191,7]
[379623231,1755348646597,-151.081265,0.00022191,7]
[379623232,1755348646606,-480.0,0.00022191,3]
[379623233,1755348646615,-480.0,0.00022191,3]
[379623234,1755348646624,-151.0,0.00022191,7]
[379623235,1755348646633,-590.68107786,0.00022191,3]
[379623236,1755348646642,-678.05,0.00022191,3]
[379623237,1755348646651,-480.0,0.00022191,3]
[379623238,1755348646662,-480.0,0.00022191,3]
[379623239,1755348646672,-1492.189485,0.00022191,7]
[379623240,1755348646681,-1492.189485,0.00022191,7]
[379623241,1755348646690,-1492.189485,0.00022191,7]
[379623242,1755348646700,-1492.189485,0.00022191,7]
[379623243,1755348646709,-480.0,0.00022191,3]
[379623244,1755348646718,-480.0,0.00022191,3]
[379623245,1755348646727,-480.0,0.00022191,3]
[379623246,1755348646736,-151.0,0.00022191,7]
[379623247,1755348646745,-151.0,0.00022191,7]
[379623248,1755348646755,-480.0,0.00022191,3]
[379623249,1755348646764,-151.0,0.00022191,7]
[379623250,1755348646777,-480.0,0.00022191,3]
[379623251,1755348646787,-605.38097869,0.00022191,3]
[379623253,1755348646797,-480.0,0.00022191,3]
[379623254,1755348646806,-399.22437161,0.00022191,3]
[379623256,1755348646816,-151.0,0.00022191,7]
[379623257,1755348646825,-2582.92,0.00022191,3]
[379623258,1755348646835,-480.0,0.00022191,3]
[379623259,1755348646844,-480.0,0.00022191,3]
[379623260,1755348646853,-480.0,0.00022191,3]
[379623261,1755348646862,-480.0,0.00022191,3]
[379623262,1755348646872,-151.0,0.00022191,7]
[379623263,1755348646881,-151.0,0.00022191,7]
[379623264,1755348646890,-480.0,0.00022191,3]
[379623265,1755348646899,-3365.13,0.00022191,3]
[379623266,1755348646910,-151.0,0.00022191,7]
[379623267,1755348646919,-151.0,0.00022191,7]
[379623268,1755348646928,-480.0,0.00022191,3]
[379623269,1755348646938,-480.0,0.00022191,3]
[379623270,1755348646948,-480.0,0.00022191,3]
[379623271,1755348646957,-480.0,0.00022191,3]
[379623272,1755348646966,-460.0,0.00022191,3]
[379623273,1755348646975,-480.0,0.00022191,3]